[Event "*** Biggest EVER Titled Tuesday"]
[Site "Chess.com"]
[Date "2018.04.17"]
[Round "7"]
[White "GMMatamoros"]
[Black "Dr-Bassem"]
[Result "0-1"]
[WhiteElo "2508"]
[BlackElo "2715"]
[TimeControl "180+2"]
[EndTime "14:38:01 PDT"]
[Termination "Dr-Bassem won by checkmate"]

1. Nf3 {[%clk 0:03:01.9]} 1... f5 {[%clk 0:02:58.9]} 2. c4 {[%clk 0:03:01.2]}
2... Nf6 {[%clk 0:03:00]} 3. g3 {[%clk 0:03:01]} 3... e6 {[%clk 0:02:59.6]} 4.
Bg2 {[%clk 0:03:01.1]} 4... Be7 {[%clk 0:03:01.1]} 5. O-O {[%clk 0:03:01.7]}
5... O-O {[%clk 0:03:02.7]} 6. b3 {[%clk 0:02:59.8]} 6... d6 {[%clk 0:03:02.9]}
7. d4 {[%clk 0:02:58.6]} 7... Qe8 {[%clk 0:03:04]} 8. Bb2 {[%clk 0:02:59.4]}
8... Qg6 {[%clk 0:02:45.8]} 9. Nbd2 {[%clk 0:02:55.5]} 9... Nc6 {[%clk
0:02:44.5]} 10. e3 {[%clk 0:02:47.3]} 10... Bd7 {[%clk 0:02:35.2]} 11. Qe2
{[%clk 0:02:32.5]} 11... Rae8 {[%clk 0:02:29.2]} 12. a3 {[%clk 0:02:31.6]} 12...
Bd8 {[%clk 0:02:20.4]} 13. b4 {[%clk 0:02:28.6]} 13... a6 {[%clk 0:02:10.6]} 14.
Rac1 {[%clk 0:02:08.8]} 14... Ne4 {[%clk 0:02:05.2]} 15. Nxe4 {[%clk 0:01:45.7]}
15... fxe4 {[%clk 0:02:07.1]} 16. Nd2 {[%clk 0:01:47.3]} 16... d5 {[%clk
0:02:08.3]} 17. b5 {[%clk 0:01:48.6]} 17... axb5 {[%clk 0:01:56.4]} 18. cxd5
{[%clk 0:01:43.7]} 18... exd5 {[%clk 0:01:51.4]} 19. Qxb5 {[%clk 0:01:44.8]}
19... Qd6 {[%clk 0:00:54.1]} 20. Qxb7 {[%clk 0:01:38]} 20... Bg5 {[%clk
0:00:45.5]} 21. Qb3 {[%clk 0:01:31.9]} 21... Rb8 {[%clk 0:00:41]} 22. Qa2 {[%clk
0:01:32.2]} 22... Kh8 {[%clk 0:00:35.7]} 23. Nb3 {[%clk 0:01:18.4]} 23... Ne7
{[%clk 0:00:32.5]} 24. Nc5 {[%clk 0:01:13.4]} 24... Bb5 {[%clk 0:00:33.4]} 25.
Rfe1 {[%clk 0:01:05.3]} 25... Qf6 {[%clk 0:00:23.1]} 26. Bc3 {[%clk 0:01:02.8]}
26... Bc4 {[%clk 0:00:23.8]} 27. Qd2 {[%clk 0:01:03.7]} 27... Qf5 {[%clk
0:00:23]} 28. Bb4 {[%clk 0:01:02.3]} 28... Rf7 {[%clk 0:00:21.5]} 29. Nxe4
{[%clk 0:01:02]} 29... dxe4 {[%clk 0:00:16.1]} 30. Rxc4 {[%clk 0:01:02.3]} 30...
Nd5 {[%clk 0:00:17.4]} 31. Qc2 {[%clk 0:00:56.3]} 31... h5 {[%clk 0:00:15.6]}
32. Qxe4 {[%clk 0:00:55.5]} 32... Qxf2+ {[%clk 0:00:15.1]} 33. Kh1 {[%clk
0:00:55.1]} 33... Nxe3 {[%clk 0:00:16.5]} 34. Rcc1 {[%clk 0:00:49]} 34... Nxg2
{[%clk 0:00:14.7]} 35. Qxg2 {[%clk 0:00:49.3]} 35... Bxc1 {[%clk 0:00:13.7]} 36.
Qxf2 {[%clk 0:00:47.9]} 36... Rxf2 {[%clk 0:00:13.7]} 37. Rxc1 {[%clk
0:00:49.8]} 37... Re8 {[%clk 0:00:14.1]} 38. Rc5 {[%clk 0:00:44.4]} 38... Ree2
{[%clk 0:00:13.6]} 39. Rxh5+ {[%clk 0:00:44.6]} 39... Kg8 {[%clk 0:00:15]} 40.
Rc5 {[%clk 0:00:18.4]} 40... Rf1# {[%clk 0:00:15.6]} 0-1

[Event "*** Biggest EVER Titled Tuesday"]
[Site "Chess.com"]
[Date "2018.04.17"]
[Round "7"]
[White "NTBT_DHS"]
[Black "Godzillator"]
[Result "1-0"]
[WhiteElo "2516"]
[BlackElo "2295"]
[TimeControl "180+2"]
[EndTime "14:38:02 PDT"]
[Termination "NTBT_DHS won by resignation"]

1. d4 {[%clk 0:03:01.9]} 1... d5 {[%clk 0:03:00.6]} 2. c4 {[%clk 0:03:03]} 2...
c6 {[%clk 0:03:01.9]} 3. Nf3 {[%clk 0:03:04.3]} 3... Nf6 {[%clk 0:03:03]} 4. Nc3
{[%clk 0:03:05.6]} 4... a6 {[%clk 0:03:04.3]} 5. c5 {[%clk 0:03:06.3]} 5... Bg4
{[%clk 0:03:04.5]} 6. Bf4 {[%clk 0:03:00.8]} 6... Bxf3 {[%clk 0:03:05]} 7. gxf3
{[%clk 0:03:01.3]} 7... g6 {[%clk 0:03:05.1]} 8. Qb3 {[%clk 0:02:55.6]} 8... Qc8
{[%clk 0:03:05.1]} 9. h4 {[%clk 0:02:54.7]} 9... h5 {[%clk 0:03:04]} 10. Bh3
{[%clk 0:02:54.9]} 10... e6 {[%clk 0:03:03.7]} 11. e4 {[%clk 0:02:44]} 11...
Nbd7 {[%clk 0:03:02.1]} 12. O-O-O {[%clk 0:02:43.9]} 12... Bh6 {[%clk
0:03:00.5]} 13. Bg5 {[%clk 0:02:39.5]} 13... Bxg5+ {[%clk 0:02:56]} 14. hxg5
{[%clk 0:02:40.2]} 14... Ng8 {[%clk 0:02:56.2]} 15. f4 {[%clk 0:02:40.6]} 15...
Qc7 {[%clk 0:02:55.3]} 16. f5 {[%clk 0:02:34]} 16... gxf5 {[%clk 0:02:46.6]} 17.
exf5 {[%clk 0:02:33.7]} 17... exf5 {[%clk 0:02:47.6]} 18. Rde1+ {[%clk
0:02:14.6]} 18... Ne7 {[%clk 0:02:47.8]} 19. Kb1 {[%clk 0:02:11.3]} 19... Kd8
{[%clk 0:02:48.5]} 20. Re2 {[%clk 0:01:56.9]} 20... Rb8 {[%clk 0:02:49]} 21.
Rhe1 {[%clk 0:01:55.9]} 21... Ng6 {[%clk 0:02:17.7]} 22. Bxf5 {[%clk 0:01:52]}
22... Qf4 {[%clk 0:02:18.4]} 23. Qc2 {[%clk 0:01:01.6]} 23... Qxg5 {[%clk
0:02:06.4]} 24. Na4 {[%clk 0:00:41.3]} 24... h4 {[%clk 0:02:04.3]} 25. Bxd7
{[%clk 0:00:35.6]} 25... Kxd7 {[%clk 0:02:05.4]} 26. Nb6+ {[%clk 0:00:36.2]}
26... Kd8 {[%clk 0:01:46.3]} 27. Qc3 {[%clk 0:00:25.3]} 27... h3 {[%clk
0:01:34.9]} 28. Qa5 {[%clk 0:00:26.1]} 28... h2 {[%clk 0:01:35.8]} 29. Nxd5+
{[%clk 0:00:18.4]} 29... b6 {[%clk 0:01:36.9]} 30. Nxb6 {[%clk 0:00:18.8]} 30...
Qf5+ {[%clk 0:01:19.3]} 31. Ka1 {[%clk 0:00:19.1]} 31... Rb7 {[%clk 0:01:07.8]}
32. Nc4+ {[%clk 0:00:06.3]} 32... Kd7 {[%clk 0:01:04.3]} 33. Qxa6 {[%clk
0:00:07.8]} 33... Rhb8 {[%clk 0:01:02]} 34. Nb6+ {[%clk 0:00:06.3]} 34... Rxb6
{[%clk 0:01:01.3]} 35. cxb6 {[%clk 0:00:06.4]} 35... Kd6 {[%clk 0:00:44.4]} 36.
Qa3+ {[%clk 0:00:06.6]} 36... c5 {[%clk 0:00:44.2]} 37. dxc5+ {[%clk 0:00:07.1]}
37... Qxc5 {[%clk 0:00:44.2]} 38. Qg3+ {[%clk 0:00:07.1]} 38... Kc6 {[%clk
0:00:39]} 39. Qxb8 {[%clk 0:00:05.2]} 39... Ne5 {[%clk 0:00:36.1]} 40. Qc7+
{[%clk 0:00:05.2]} 40... Kb5 {[%clk 0:00:36.6]} 41. Qxc5+ {[%clk 0:00:07.1]}
41... Kxc5 {[%clk 0:00:37.1]} 42. Rxe5+ {[%clk 0:00:08.2]} 42... Kd4 {[%clk
0:00:38.4]} 43. Rh5 {[%clk 0:00:09.2]} 1-0

[Event "*** Biggest EVER Titled Tuesday"]
[Site "Chess.com"]
[Date "2018.04.17"]
[Round "7"]
[White "grzechu96"]
[Black "ABDELAZEEZ-M"]
[Result "1-0"]
[WhiteElo "2468"]
[BlackElo "2312"]
[TimeControl "180+2"]
[EndTime "14:38:05 PDT"]
[Termination "grzechu96 won by checkmate"]

1. e4 {[%clk 0:03:01.9]} 1... c5 {[%clk 0:03:00.1]} 2. Nf3 {[%clk 0:02:58.3]}
2... Nc6 {[%clk 0:03:00.9]} 3. Bb5 {[%clk 0:02:58.4]} 3... g6 {[%clk 0:03:01.5]}
4. Bxc6 {[%clk 0:02:58.8]} 4... bxc6 {[%clk 0:03:03.4]} 5. O-O {[%clk 0:02:58]}
5... Bg7 {[%clk 0:03:04.2]} 6. Re1 {[%clk 0:02:58]} 6... e5 {[%clk 0:03:05.1]}
7. c3 {[%clk 0:02:57.7]} 7... Ne7 {[%clk 0:03:05.5]} 8. d4 {[%clk 0:02:39.3]}
8... cxd4 {[%clk 0:03:04.4]} 9. cxd4 {[%clk 0:02:41.2]} 9... exd4 {[%clk
0:03:05.3]} 10. Nxd4 {[%clk 0:02:42.9]} 10... O-O {[%clk 0:03:05.7]} 11. Nc3
{[%clk 0:02:44]} 11... d5 {[%clk 0:03:06.5]} 12. exd5 {[%clk 0:02:24.6]} 12...
cxd5 {[%clk 0:03:04.1]} 13. Bg5 {[%clk 0:02:25.2]} 13... f6 {[%clk 0:03:00.8]}
14. Bf4 {[%clk 0:02:25.6]} 14... Kh8 {[%clk 0:02:48.7]} 15. Qd2 {[%clk
0:02:13.6]} 15... g5 {[%clk 0:02:38.9]} 16. Bg3 {[%clk 0:02:13.4]} 16... Ng6
{[%clk 0:02:36.6]} 17. Nc6 {[%clk 0:01:30.2]} 17... Qb6 {[%clk 0:02:31.7]} 18.
Ne7 {[%clk 0:01:16.6]} 18... Nxe7 {[%clk 0:02:14.3]} 19. Rxe7 {[%clk 0:01:18.5]}
19... d4 {[%clk 0:02:11.8]} 20. Ne2 {[%clk 0:01:12.4]} 20... Qc5 {[%clk
0:02:03.3]} 21. Rc7 {[%clk 0:01:11.6]} 21... Qb6 {[%clk 0:01:54.5]} 22. Qxd4
{[%clk 0:01:05.9]} 22... Qe6 {[%clk 0:01:54.3]} 23. Nc3 {[%clk 0:01:02.1]} 23...
Ba6 {[%clk 0:01:54.3]} 24. Rd1 {[%clk 0:01:00.1]} 24... h5 {[%clk 0:01:34.1]}
25. h4 {[%clk 0:00:54.9]} 25... gxh4 {[%clk 0:01:22.1]} 26. Qxh4 {[%clk
0:00:47.7]} 26... Qf5 {[%clk 0:01:15.6]} 27. Rd5 {[%clk 0:00:45.9]} 27... Qg6
{[%clk 0:01:11.2]} 28. Rxh5+ {[%clk 0:00:29.9]} 28... Kg8 {[%clk 0:01:11.7]} 29.
Ra5 {[%clk 0:00:25.3]} 29... Bd3 {[%clk 0:01:05]} 30. Rd5 {[%clk 0:00:25.9]}
30... Rae8 {[%clk 0:01:00.9]} 31. Rdd7 {[%clk 0:00:22.8]} 31... Re1+ {[%clk
0:01:01.4]} 32. Kh2 {[%clk 0:00:24.2]} 32... Bh8 {[%clk 0:01:02]} 33. Rxd3
{[%clk 0:00:17.5]} 33... Bg7 {[%clk 0:00:25]} 34. Rdd7 {[%clk 0:00:17.5]} 34...
Bh6 {[%clk 0:00:25.5]} 35. Rh7 {[%clk 0:00:12.8]} 35... Bg5 {[%clk 0:00:13.9]}
36. Rh8# {[%clk 0:00:13.4]} 1-0

[Event "*** Biggest EVER Titled Tuesday"]
[Site "Chess.com"]
[Date "2018.04.17"]
[Round "7"]
[White "saraswathii"]
[Black "FMJoseHerrera"]
[Result "0-1"]
[WhiteElo "2259"]
[BlackElo "2456"]
[TimeControl "180+2"]
[EndTime "14:38:10 PDT"]
[Termination "FMJoseHerrera won by resignation"]

1. e4 {[%clk 0:03:00.9]} 1... c5 {[%clk 0:02:59.7]} 2. d3 {[%clk 0:02:58]} 2...
e6 {[%clk 0:02:59.8]} 3. Nf3 {[%clk 0:02:55]} 3... Qc7 {[%clk 0:03:00.6]} 4. g3
{[%clk 0:02:50.4]} 4... d6 {[%clk 0:03:01.3]} 5. Bg2 {[%clk 0:02:39.8]} 5... Nd7
{[%clk 0:03:03.2]} 6. O-O {[%clk 0:02:33.9]} 6... Ngf6 {[%clk 0:03:02.5]} 7. Qe2
{[%clk 0:02:25.1]} 7... Be7 {[%clk 0:03:02.6]} 8. c3 {[%clk 0:02:22.4]} 8... Rb8
{[%clk 0:03:00.2]} 9. d4 {[%clk 0:02:16.3]} 9... b5 {[%clk 0:02:53.6]} 10. e5
{[%clk 0:02:07.1]} 10... Nd5 {[%clk 0:02:53.3]} 11. Nbd2 {[%clk 0:02:04.4]}
11... O-O {[%clk 0:02:50.2]} 12. exd6 {[%clk 0:01:39.7]} 12... Bxd6 {[%clk
0:02:50.4]} 13. Ne4 {[%clk 0:01:36.8]} 13... Be7 {[%clk 0:02:51.7]} 14. Nfg5
{[%clk 0:01:32.3]} 14... h6 {[%clk 0:02:38.2]} 15. Nh3 {[%clk 0:01:32.7]} 15...
cxd4 {[%clk 0:02:38]} 16. cxd4 {[%clk 0:01:33]} 16... Qc4 {[%clk 0:02:39]} 17.
Qxc4 {[%clk 0:01:25.9]} 17... bxc4 {[%clk 0:02:40]} 18. Nc3 {[%clk 0:01:25]}
18... Nb4 {[%clk 0:02:36]} 19. Bf4 {[%clk 0:01:25.1]} 19... Rb6 {[%clk
0:02:12.3]} 20. Rad1 {[%clk 0:01:19.4]} 20... Nf6 {[%clk 0:02:09.4]} 21. Be3
{[%clk 0:00:54.4]} 21... Nbd5 {[%clk 0:02:07.3]} 22. Nxd5 {[%clk 0:00:49.7]}
22... Nxd5 {[%clk 0:02:06.8]} 23. Rd2 {[%clk 0:00:48.4]} 23... Ba6 {[%clk
0:02:03.7]} 24. Rc1 {[%clk 0:00:47.8]} 24... Rfb8 {[%clk 0:02:01.9]} 25. Bxd5
{[%clk 0:00:45.2]} 25... exd5 {[%clk 0:02:01.7]} 26. Nf4 {[%clk 0:00:46.6]}
26... Rxb2 {[%clk 0:01:47.9]} 27. Nxd5 {[%clk 0:00:39.6]} 27... Bd8 {[%clk
0:01:45.1]} 28. Rdc2 {[%clk 0:00:36.8]} 28... Rxc2 {[%clk 0:01:38.5]} 29. Rxc2
{[%clk 0:00:37.4]} 29... Rb1+ {[%clk 0:01:40.4]} 30. Rc1 {[%clk 0:00:37.9]}
30... Rb2 {[%clk 0:01:41.4]} 31. Nc3 {[%clk 0:00:34.7]} 31... Ba5 {[%clk
0:01:34.7]} 32. d5 {[%clk 0:00:34.7]} 32... Kf8 {[%clk 0:01:33.3]} 33. Na4
{[%clk 0:00:31.3]} 33... Rxa2 {[%clk 0:01:27]} 34. Nc5 {[%clk 0:00:32]} 34...
Bc8 {[%clk 0:01:27]} 35. Rxc4 {[%clk 0:00:20.1]} 35... Bh3 {[%clk 0:01:26]} 36.
Rc1 {[%clk 0:00:20.8]} 36... Bb6 {[%clk 0:01:25]} 37. d6 {[%clk 0:00:21.7]}
37... Ke8 {[%clk 0:01:21.5]} 38. Re1 {[%clk 0:00:20]} 38... Kd8 {[%clk
0:01:21.8]} 39. Nb7+ {[%clk 0:00:19.9]} 39... Kd7 {[%clk 0:01:20.6]} 40. Nc5+
{[%clk 0:00:21.2]} 40... Kxd6 {[%clk 0:01:19.9]} 41. Ne4+ {[%clk 0:00:22.3]}
41... Kc6 {[%clk 0:01:19]} 42. Rc1+ {[%clk 0:00:22.5]} 42... Kd7 {[%clk
0:01:14.5]} 43. Rd1+ {[%clk 0:00:22.9]} 43... Ke7 {[%clk 0:01:14.5]} 44. Bxb6
{[%clk 0:00:23.2]} 44... axb6 {[%clk 0:01:15.2]} 45. Nd6 {[%clk 0:00:24.8]}
45... Rc2 {[%clk 0:01:08.8]} 46. Nb5 {[%clk 0:00:24]} 46... g6 {[%clk
0:01:05.4]} 47. Nd4 {[%clk 0:00:23.2]} 47... Rb2 {[%clk 0:01:06.7]} 48. Nc6+
{[%clk 0:00:23]} 48... Kf6 {[%clk 0:01:06.9]} 49. Nd4 {[%clk 0:00:19.9]} 49...
b5 {[%clk 0:01:06.1]} 50. Nc6 {[%clk 0:00:18.5]} 50... b4 {[%clk 0:01:06.6]} 51.
Nd4 {[%clk 0:00:18.8]} 51... h5 {[%clk 0:01:04.7]} 0-1

[Event "*** Biggest EVER Titled Tuesday"]
[Site "Chess.com"]
[Date "2018.04.17"]
[Round "7"]
[White "Karina_Oparina"]
[Black "Nutflush"]
[Result "1-0"]
[WhiteElo "2151"]
[BlackElo "2039"]
[TimeControl "180+2"]
[EndTime "14:38:15 PDT"]
[Termination "Karina_Oparina won on time"]

1. d4 {[%clk 0:02:59.6]} 1... Nf6 {[%clk 0:02:31.7]} 2. Nf3 {[%clk 0:02:59.6]}
2... d5 {[%clk 0:02:31.6]} 3. c4 {[%clk 0:02:59.9]} 3... e6 {[%clk 0:02:31.1]}
4. Nc3 {[%clk 0:03:00.1]} 4... Be7 {[%clk 0:02:30.1]} 5. Bf4 {[%clk 0:02:59.9]}
5... O-O {[%clk 0:02:23.5]} 6. e3 {[%clk 0:03:00.5]} 6... c5 {[%clk 0:02:13.2]}
7. dxc5 {[%clk 0:02:57.3]} 7... Bxc5 {[%clk 0:02:13.1]} 8. Rc1 {[%clk
0:02:57.6]} 8... Bb4 {[%clk 0:01:57.3]} 9. a3 {[%clk 0:02:58.1]} 9... Bxc3+
{[%clk 0:01:56.4]} 10. Rxc3 {[%clk 0:02:50.2]} 10... Nbd7 {[%clk 0:01:45.7]} 11.
c5 {[%clk 0:02:19.8]} 11... Ne4 {[%clk 0:01:41.2]} 12. Rc2 {[%clk 0:02:06.9]}
12... Qa5+ {[%clk 0:01:36.2]} 13. Nd2 {[%clk 0:02:03.1]} 13... e5 {[%clk
0:01:25.6]} 14. Bg3 {[%clk 0:01:55.1]} 14... f6 {[%clk 0:01:14.4]} 15. Be2
{[%clk 0:01:28.1]} 15... b6 {[%clk 0:00:57.4]} 16. c6 {[%clk 0:01:24.9]} 16...
Nb8 {[%clk 0:00:52.6]} 17. b4 {[%clk 0:01:13.9]} 17... Qxa3 {[%clk 0:00:52.6]}
18. Nxe4 {[%clk 0:01:13.5]} 18... dxe4 {[%clk 0:00:54]} 19. Qd5+ {[%clk
0:01:06]} 19... Kh8 {[%clk 0:00:53.1]} 20. c7 {[%clk 0:00:50]} 20... Na6 {[%clk
0:00:41.4]} 21. Qxa8 {[%clk 0:00:47.5]} 21... Nxb4 {[%clk 0:00:40.5]} 22. Rd2
{[%clk 0:00:41.6]} 22... Qa1+ {[%clk 0:00:17.9]} 23. Bd1 {[%clk 0:00:32]} 23...
Nd3+ {[%clk 0:00:14.9]} 24. Rxd3 {[%clk 0:00:13.6]} 24... exd3 {[%clk
0:00:15.1]} 25. O-O {[%clk 0:00:14.6]} 25... Qa3 {[%clk 0:00:13.3]} 26. e4
{[%clk 0:00:10.2]} 26... d2 {[%clk 0:00:08.1]} 27. f4 {[%clk 0:00:09]} 27... Ba6
{[%clk 0:00:08.9]} 28. Qxa7 {[%clk 0:00:07.8]} 28... Rc8 {[%clk 0:00:08.6]} 29.
Qxb6 {[%clk 0:00:06]} 29... Bxf1 {[%clk 0:00:08.5]} 30. Kxf1 {[%clk 0:00:06.2]}
30... Qd3+ {[%clk 0:00:09.8]} 31. Kf2 {[%clk 0:00:05]} 31... Qxe4 {[%clk
0:00:10]} 32. fxe5 {[%clk 0:00:02.8]} 32... f5 {[%clk 0:00:09.4]} 33. Qe6 {[%clk
0:00:03.2]} 33... Qd4+ {[%clk 0:00:07.6]} 34. Kf1 {[%clk 0:00:03.6]} 34... Qd3+
{[%clk 0:00:07.5]} 35. Kf2 {[%clk 0:00:04.9]} 35... Qd4+ {[%clk 0:00:08.5]} 36.
Kf1 {[%clk 0:00:06.3]} 36... Qd3+ {[%clk 0:00:08.4]} 37. Kg1 {[%clk 0:00:06.4]}
37... Qd4+ {[%clk 0:00:05.2]} 38. Bf2 {[%clk 0:00:06.6]} 1-0

[Event "*** Biggest EVER Titled Tuesday"]
[Site "Chess.com"]
[Date "2018.04.17"]
[Round "7"]
[White "2165149677570"]
[Black "toad"]
[Result "0-1"]
[WhiteElo "2112"]
[BlackElo "2210"]
[TimeControl "180+2"]
[EndTime "14:38:16 PDT"]
[Termination "toad won by resignation"]

1. e4 {[%clk 0:03:01.9]} 1... c5 {[%clk 0:03:00]} 2. Nf3 {[%clk 0:03:02.3]} 2...
d6 {[%clk 0:03:01.3]} 3. Bb5+ {[%clk 0:03:02.7]} 3... Nd7 {[%clk 0:03:01.6]} 4.
a4 {[%clk 0:02:58.5]} 4... a6 {[%clk 0:03:00.9]} 5. Be2 {[%clk 0:02:58.4]} 5...
e6 {[%clk 0:03:01.5]} 6. d4 {[%clk 0:02:58.6]} 6... cxd4 {[%clk 0:03:01.8]} 7.
Qxd4 {[%clk 0:03:00.5]} 7... Ngf6 {[%clk 0:03:02.1]} 8. O-O {[%clk 0:03:00.8]}
8... Be7 {[%clk 0:02:56.8]} 9. Nc3 {[%clk 0:03:02]} 9... O-O {[%clk 0:02:57.3]}
10. a5 {[%clk 0:03:02.2]} 10... b5 {[%clk 0:02:51.6]} 11. axb6 {[%clk
0:03:03.1]} 11... Qxb6 {[%clk 0:02:52.7]} 12. Qd1 {[%clk 0:03:02]} 12... Bb7
{[%clk 0:02:52.1]} 13. Bd3 {[%clk 0:02:58.6]} 13... Nc5 {[%clk 0:02:43]} 14. Be3
{[%clk 0:02:57.9]} 14... Qc7 {[%clk 0:02:43.4]} 15. Nd2 {[%clk 0:02:50.6]} 15...
Nxd3 {[%clk 0:02:33.2]} 16. cxd3 {[%clk 0:02:52.5]} 16... d5 {[%clk 0:02:34.6]}
17. Qc1 {[%clk 0:02:29.8]} 17... Rfd8 {[%clk 0:02:25.3]} 18. Nxd5 {[%clk
0:02:06.7]} 18... Nxd5 {[%clk 0:02:26]} 19. exd5 {[%clk 0:02:05.9]} 19... Qxc1
{[%clk 0:02:26.6]} 20. Rfxc1 {[%clk 0:02:06.9]} 20... Bxd5 {[%clk 0:02:21.9]}
21. Nc4 {[%clk 0:02:02.7]} 21... Bf6 {[%clk 0:02:08.8]} 22. Nb6 {[%clk
0:01:56.3]} 22... Bxb2 {[%clk 0:01:59]} 23. Nxa8 {[%clk 0:01:52.5]} 23... Bxc1
{[%clk 0:01:48.9]} 24. Nc7 {[%clk 0:01:17.9]} 24... Bxe3 {[%clk 0:01:29.1]} 25.
fxe3 {[%clk 0:01:03.1]} 25... Bb7 {[%clk 0:00:44.8]} 26. Rb1 {[%clk 0:00:57.1]}
26... Bc6 {[%clk 0:00:45.7]} 27. Nxa6 {[%clk 0:00:51]} 27... g6 {[%clk
0:00:46.1]} 28. Nc5 {[%clk 0:00:40.6]} 28... Rd5 {[%clk 0:00:43]} 29. d4 {[%clk
0:00:40.8]} 29... e5 {[%clk 0:00:43.9]} 30. Rb6 {[%clk 0:00:41.7]} 30... Bd7
{[%clk 0:00:33.4]} 31. Rb8+ {[%clk 0:00:22.2]} 31... Kg7 {[%clk 0:00:33.7]} 32.
Rd8 {[%clk 0:00:20.8]} 32... Bc6 {[%clk 0:00:18.2]} 33. Rxd5 {[%clk 0:00:21.3]}
33... Bxd5 {[%clk 0:00:19.3]} 34. dxe5 {[%clk 0:00:20.3]} 34... g5 {[%clk
0:00:18.6]} 35. Kf2 {[%clk 0:00:18.1]} 35... Kf8 {[%clk 0:00:19.2]} 36. e4
{[%clk 0:00:17.5]} 36... Ba2 {[%clk 0:00:17.1]} 37. Kg3 {[%clk 0:00:18.6]} 37...
h5 {[%clk 0:00:17.9]} 38. Nd7+ {[%clk 0:00:17.3]} 38... Ke7 {[%clk 0:00:18.6]}
39. Nf6 {[%clk 0:00:18.9]} 39... Ke6 {[%clk 0:00:18.4]} 40. Nxh5 {[%clk
0:00:15.7]} 40... Kxe5 {[%clk 0:00:19.5]} 41. Kf3 {[%clk 0:00:17.1]} 41... Bb1
{[%clk 0:00:19.8]} 42. Ng3 {[%clk 0:00:17.8]} 42... Bc2 {[%clk 0:00:17.9]} 43.
Kg4 {[%clk 0:00:18.8]} 43... f6 {[%clk 0:00:17.9]} 44. h3 {[%clk 0:00:17.1]}
44... Bd1+ {[%clk 0:00:17.7]} 45. Ne2 {[%clk 0:00:15.3]} 45... Bxe2+ {[%clk
0:00:18.9]} 46. Kg3 {[%clk 0:00:16]} 46... Kxe4 {[%clk 0:00:20.3]} 47. Kf2
{[%clk 0:00:17.6]} 47... Bd1 {[%clk 0:00:20.7]} 0-1

[Event "*** Biggest EVER Titled Tuesday"]
[Site "Chess.com"]
[Date "2018.04.17"]
[Round "7"]
[White "patzerplay"]
[Black "Jbd735"]
[Result "0-1"]
[WhiteElo "2302"]
[BlackElo "2312"]
[TimeControl "180+2"]
[EndTime "14:38:22 PDT"]
[Termination "Jbd735 won by resignation"]

1. e4 {[%clk 0:03:01.9]} 1... e5 {[%clk 0:03:00.5]} 2. Nf3 {[%clk 0:03:02.2]}
2... Nc6 {[%clk 0:03:01.4]} 3. Bb5 {[%clk 0:03:02.8]} 3... a6 {[%clk 0:03:01.9]}
4. Ba4 {[%clk 0:03:03.8]} 4... Nf6 {[%clk 0:03:02.3]} 5. O-O {[%clk 0:03:05]}
5... Be7 {[%clk 0:03:02.9]} 6. Re1 {[%clk 0:03:05.7]} 6... b5 {[%clk 0:03:03.5]}
7. Bb3 {[%clk 0:03:07.1]} 7... d6 {[%clk 0:03:04.3]} 8. c3 {[%clk 0:03:06.1]}
8... O-O {[%clk 0:03:04.2]} 9. a4 {[%clk 0:03:01.2]} 9... Rb8 {[%clk 0:02:09.9]}
10. axb5 {[%clk 0:02:58.5]} 10... axb5 {[%clk 0:02:09.1]} 11. d4 {[%clk
0:02:57.9]} 11... exd4 {[%clk 0:02:02.8]} 12. cxd4 {[%clk 0:02:58]} 12... Bg4
{[%clk 0:02:03.5]} 13. d5 {[%clk 0:02:50.1]} 13... Ne5 {[%clk 0:01:50.3]} 14.
Nbd2 {[%clk 0:02:49.3]} 14... Nd3 {[%clk 0:01:48.4]} 15. Re3 {[%clk 0:02:50.4]}
15... Nxc1 {[%clk 0:01:47.5]} 16. Rxc1 {[%clk 0:02:51.8]} 16... Nd7 {[%clk
0:01:47.4]} 17. h3 {[%clk 0:02:45.8]} 17... Bh5 {[%clk 0:01:45.9]} 18. Bc2
{[%clk 0:02:43.3]} 18... Bg5 {[%clk 0:01:30.4]} 19. Rc3 {[%clk 0:02:33.3]} 19...
Bf6 {[%clk 0:01:22.2]} 20. Rc6 {[%clk 0:02:26.7]} 20... Bxb2 {[%clk 0:01:06.7]}
21. Rb1 {[%clk 0:02:27.7]} 21... Bf6 {[%clk 0:01:07.7]} 22. g4 {[%clk
0:02:28.3]} 22... Bg6 {[%clk 0:01:08.1]} 23. Bd3 {[%clk 0:02:25.6]} 23... b4
{[%clk 0:01:05.4]} 24. Nb3 {[%clk 0:02:19.3]} 24... Re8 {[%clk 0:01:04.9]} 25.
Qc2 {[%clk 0:02:20.4]} 25... Rb7 {[%clk 0:00:36.8]} 26. Rc1 {[%clk 0:02:18.2]}
26... Ne5 {[%clk 0:00:28.9]} 27. Be2 {[%clk 0:02:06.3]} 27... Nxc6 {[%clk
0:00:24.9]} 28. Qxc6 {[%clk 0:02:03.5]} 28... Ra7 {[%clk 0:00:22.9]} 29. Rc4
{[%clk 0:01:44.2]} 29... Rxe4 {[%clk 0:00:20.9]} 30. Nbd4 {[%clk 0:01:34.4]}
30... h5 {[%clk 0:00:18.2]} 31. Bd3 {[%clk 0:01:27.9]} 31... Rxd4 {[%clk
0:00:13]} 32. Nxd4 {[%clk 0:01:28]} 32... Bxd3 {[%clk 0:00:12.8]} 33. Rxb4
{[%clk 0:01:24]} 33... hxg4 {[%clk 0:00:10.5]} 34. hxg4 {[%clk 0:01:24.6]} 34...
Ra1+ {[%clk 0:00:06.5]} 35. Kg2 {[%clk 0:01:25.6]} 35... Be5 {[%clk 0:00:07]}
36. Nb3 {[%clk 0:01:19.7]} 36... Rb1 {[%clk 0:00:05.5]} 37. Ra4 {[%clk
0:01:15.2]} 37... Rxb3 {[%clk 0:00:04.4]} 38. Ra8 {[%clk 0:01:15.9]} 38... Rb8
{[%clk 0:00:05.1]} 39. Ra3 {[%clk 0:01:15.9]} 39... Qg5 {[%clk 0:00:05.1]} 40.
Qa4 {[%clk 0:01:01.6]} 40... Bg6 {[%clk 0:00:04.9]} 41. Rf3 {[%clk 0:01:01.6]}
41... Qh4 {[%clk 0:00:05.5]} 42. Rh3 {[%clk 0:01:00.4]} 42... Qf6 {[%clk
0:00:06.4]} 43. Rf3 {[%clk 0:00:58.4]} 43... Qg5 {[%clk 0:00:07]} 44. Rh3 {[%clk
0:00:55.8]} 44... Rf8 {[%clk 0:00:07.8]} 45. Qd7 {[%clk 0:00:48.8]} 45... Qf4
{[%clk 0:00:08.2]} 46. Kf1 {[%clk 0:00:46.7]} 46... Be4 {[%clk 0:00:07.6]} 47.
g5 {[%clk 0:00:36.3]} 47... Bf5 {[%clk 0:00:07]} 48. Rh4 {[%clk 0:00:32.4]}
48... Bxd7 {[%clk 0:00:07.1]} 49. Rxf4 {[%clk 0:00:33.1]} 49... Bxf4 {[%clk
0:00:09]} 50. Kg2 {[%clk 0:00:34.8]} 50... Bxg5 {[%clk 0:00:09.8]} 0-1